bitfinex/quotes_ETHUSD_20241030
["timestamp","ask_amount","ask_price","bid_price","bid_amount"]
[1730310243885,3.74161,2672.7,2672.3,3.74205]
[1730310244096,3.74141,2672.8,2672.3,3.74205]
[1730310245883,3.74141,2672.8,2672.2,4.50268]
[1730310246190,3.74141,2672.8,2672.4,3.74194]
[1730310246391,3.74127,2672.9,2672.4,7.4838]
[1730310246585,3.74127,2672.9,2672.4,3.74186]
[1730310246789,3.74156,2672.7,2672.2,4.50263]
[1730310247202,0.457,2672.6,2671.9,4.50144]
[1730310247370,3.74202,2672.4,2671.9,4.50144]
[1730310247570,3.74215,2672.3,2671.9,0.7588]
[1730310248205,3.60895623,2672.5,2671.6,0.7588]
[1730310248416,3.74235,2672.2,2671.7,3.74289]
[1730310249204,3.74239,2672.1,2671.6,4.50174]
[1730310249385,3.74239,2672.1,2671.6,8.24474]
[1730310249581,3.74239,2672.1,2671.6,8.24473]
[1730310249898,7.48489,2672.1,2671.6,4.50174]
[1730310250094,3.74254,2672.0,2671.6,4.50174]
[1730310250501,3.74269,2671.9,2671.6,0.7588]
[1730310251220,4.35747923,2671.9,2671.0,0.39061089]
[1730310251558,3.74371,2671.2,2670.9,0.7588]
[1730310252272,3.74325,2671.5,2671.0,3.74384]
[1730310252613,3.74315,2671.6,2671.1,3.8185768]
[1730310252987,3.74323,2671.5,2671.1,3.7437]
[1730310253293,3.74321,2671.5,2670.9,4.96054568]
[1730310253677,3.74321,2671.5,2671.0,3.74383]
[1730310254010,3.74321,2671.5,2671.0,4.33556421]
[1730310254895,3.74336,2671.4,2671.0,0.59173421]
[1730310255102,3.7435,2671.3,2670.9,4.50276]
[1730310255327,7.48654,2671.5,2671.0,3.74391]
[1730310256636,3.74344,2671.4,2670.9,4.953126]
[1730310256842,3.74344,2671.4,2670.9,4.953056]
[1730310257049,3.74344,2671.4,2671.0,3.74391]
[1730310257808,3.74313,2671.6,2671.1,3.74369]
[1730310258548,3.74328,2671.5,2671.0,3.74391]
[1730310258750,3.74314,2671.6,2671.1,3.7437]
[1730310259622,3.74321,2671.5,2671.1,3.7437]
[1730310260646,3.74321,2671.5,2671.0,3.74382]
[1730310261009,3.74321,2671.5,2671.1,3.74377]
[1730310261545,3.74321,2671.5,2671.0,3.74391]
[1730310261709,3.74337,2671.4,2671.0,3.74391]
[1730310264254,3.74288,2671.8,2671.0,0.67411415]
[1730310264545,3.74258,2672.0,2671.5,3.74319]
[1730310264730,7.48517,2672.0,2671.5,3.74319]
[1730310265545,3.74258,2672.0,2671.4,4.56571]
[1730310265750,3.74258,2672.0,2671.6,3.74307]
[1730310265921,3.60895623,2672.2,2671.4,1.279071]
[1730310266134,7.48494,2672.1,2671.6,3.74296]
[1730310266452,3.74245,2672.1,2671.6,3.74296]
[1730310266657,7.35119623,2672.2,2671.7,3.74285]
[1730310267441,3.74273,2671.9,2671.4,0.8225]
[1730310267751,3.74273,2671.9,2671.4,8.30914]
[1730310267963,3.74273,2671.9,2671.4,8.30911]
[1730310268129,3.74273,2671.9,2671.4,4.56579]
[1730310268711,3.74273,2671.9,2671.4,8.30906]
[1730310268914,3.74273,2671.9,2671.4,4.56577]
[1730310269132,7.48546,2671.9,2671.4,4.56577]
[1730310269342,3.74273,2671.9,2671.4,4.56577]
[1730310269522,3.74281,2671.8,2671.4,4.56577]
[1730310270049,3.74249,2672.1,2671.4,4.56577]
[1730310270259,3.74267,2671.9,2671.4,8.30902]
[1730310271019,7.4854,2671.9,2671.4,4.56575]
[1730310271314,3.74267,2671.9,2671.4,4.56575]
[1730310272261,3.74267,2671.9,2671.4,8.30903]
[1730310272960,3.74248,2672.1,2671.5,3.74313]
[1730310273164,3.74252,2672.0,2671.6,3.74306]
[1730310273316,3.60895623,2672.2,2671.6,3.74306]
[1730310273317,3.74224,2672.2,2671.8,3.74278]
[1730310273863,3.74201,2672.4,2671.9,4.54799]
[1730310274117,3.74182,2672.5,2672.0,3.74239]
[1730310274869,3.74182,2672.5,2672.0,7.48482]
[1730310275167,7.48374,2672.5,2672.0,3.74239]
[1730310275464,3.74177,2672.6,2672.1,3.81714326]
[1730310275654,3.74177,2672.6,2672.2,3.74219]
[1730310277128,3.74143,2672.8,2672.3,3.74203]
[1730310277438,3.74134,2672.9,2672.4,3.81665505]
[1730310277766,3.60895623,2673.0,2672.5,3.74181]
[1730310277979,7.35007623,2673.0,2672.5,3.74181]
[1730310278182,3.74112,2673.0,2672.6,3.7416]
[1730310278497,3.74097,2673.1,2672.7,3.74147]
[1730310278778,7.48182,2673.2,2672.7,3.74147]
[1730310278977,8.21680462,2673.2,2672.7,3.74147]
[1730310279772,3.74101,2673.1,2672.7,3.74147]
[1730310280287,0.73498462,2673.2,2672.8,3.74133]
[1730310280475,3.74041,2673.5,2673.1,0.7577]
[1730310280674,3.74059,2673.4,2673.1,0.7577]
[1730310281288,3.74077,2673.3,2673.1,0.7577]
[1730310281792,3.74057,2673.4,2673.1,0.7577]
[1730310282664,4.52115662,2673.5,2673.1,0.7577]
[1730310283502,3.74052,2673.5,2673.1,0.7577]
[1730310283853,7.48101,2673.5,2673.1,0.7577]
[1730310284054,3.74073,2673.3,2673.1,0.7577]
[1730310284276,3.60895623,2673.4,2672.7,3.7989]
[1730310284454,7.34951623,2673.4,2672.9,3.74118]
[1730310285246,3.74056,2673.4,2672.9,3.74118]
[1730310286301,3.74056,2673.4,2673.0,3.7411]
[1730310286797,3.74077,2673.3,2672.9,4.11661389]
[1730310287195,3.74089,2673.2,2672.7,7.5403]
[1730310287361,3.60895623,2673.4,2672.8,3.7413]
[1730310287701,7.34957623,2673.4,2672.9,3.74119]
[1730310287859,3.7407,2673.3,2672.9,3.74119]
[1730310288695,3.74055,2673.4,2672.9,3.74119]
[1730310289469,3.74055,2673.4,2672.9,7.48236]
[1730310289696,3.7408,2673.3,2672.8,3.74127]
[1730310290002,3.7408,2673.3,2672.9,3.74124]
[1730310290504,3.74057,2673.4,2672.8,4.1212]
[1730310290796,3.74077,2673.3,2672.8,4.1212]
[1730310291361,3.74077,2673.3,2672.8,7.86251]
[1730310291591,3.74077,2673.3,2672.8,4.1212]
[1730310292302,3.74077,2673.3,2672.8,7.86252]
[1730310292466,3.74077,2673.3,2672.8,7.86249]
[1730310293030,3.74057,2673.4,2673.0,3.74109]
[1730310293191,3.74057,2673.4,2672.9,0.66962989]
[1730310293393,3.74057,2673.4,2672.9,4.41077989]
[1730310294107,3.74071,2673.3,2672.9,4.41077989]
[1730310294285,3.74057,2673.4,2672.9,4.41077989]
[1730310294493,7.4812,2673.4,2672.9,4.41077989]
[1730310294822,3.74074,2673.3,2672.9,4.41077989]
[1730310295031,3.74057,2673.4,2672.9,4.41077989]
[1730310295394,3.60895623,2673.6,2672.9,0.66962989]
[1730310295727,3.74072,2673.3,2672.8,3.74132]
[1730310297392,3.74072,2673.3,2672.7,3.7989]
[1730310297591,3.74072,2673.3,2672.8,7.48261]
[1730310297824,3.74072,2673.3,2672.9,3.74119]
[1730310298132,7.34952623,2673.4,2672.9,3.74119]
[1730310298832,3.74078,2673.3,2672.8,3.7413]
[1730310299393,3.74078,2673.3,2672.8,7.48262]
[1730310299632,3.74078,2673.3,2672.8,7.48261]
[1730310299796,3.74078,2673.3,2672.9,3.74122]
[1730310300330,7.34954623,2673.4,2673.0,3.74102]
[1730310300546,3.74081,2673.3,2672.8,3.74127]
[1730310300845,3.74081,2673.3,2672.9,4.195267]
[1730310301050,3.74059,2673.4,2672.9,7.936407]
[1730310301206,3.74059,2673.4,2672.9,4.195157]
[1730310301720,3.74059,2673.4,2672.9,7.936307]
[1730310301906,7.48127,2673.4,2672.9,4.195157]
[1730310302245,3.74043,2673.5,2673.0,3.74098]
[1730310302445,3.74043,2673.5,2673.0,4.23536232]
[1730310302659,3.74043,2673.5,2673.1,4.54931]
[1730310302816,4.19716,2673.7,2673.2,3.74082]
[1730310303000,3.74023,2673.7,2673.3,0.63000419]
[1730310303531,3.74023,2673.7,2673.3,4.37069419]
[1730310303733,0.1306011,2673.8,2673.4,0.8832046]
[1730310304054,0.1306011,2673.8,2673.5,3.74041]
[1730310304202,0.1306011,2673.8,2673.6,4.23458261]
[1730310305249,0.1306011,2673.8,2673.6,4.23455261]
[1730310305843,0.1306011,2673.8,2673.6,0.4195157]
[1730310306604,0.1306011,2673.8,2673.4,0.8084]
[1730310306829,0.1306011,2673.8,2673.0,0.7697]
[1730310306830,3.74089,2673.2,2673.0,0.7697]
[1730310307031,3.74083,2673.2,2672.5,4.51145]
[1730310307237,3.74097,2673.1,2672.6,3.7416]
[1730310307441,3.7407,2673.3,2672.8,3.74131]
[1730310307640,3.74056,2673.4,2673.0,0.7697]
[1730310307809,3.74055,2673.4,2673.0,0.7697]
[1730310308244,3.74031,2673.6,2673.0,4.51074]
[1730310308447,3.74041,2673.5,2673.0,5.26094336]
[1730310308752,3.74056,2673.4,2673.0,7.13404336]
[1730310309056,3.74031,2673.6,2673.0,7.13404336]
[1730310309354,0.1306011,2673.8,2673.4,0.7509]
[1730310309523,0.1306011,2673.8,2673.4,4.49144]
[1730310309854,3.74063,2673.4,2673.0,1.8731]
[1730310310212,3.7409,2673.2,2673.0,1.8731]
[1730310310556,3.74097,2673.1,2673.0,1.8731]
[1730310310727,3.7409,2673.2,2673.0,1.8731]
[1730310311956,3.73955733,2673.8,2673.0,2.1355]
[1730310312159,3.74013,2673.7,2673.1,4.53026]
[1730310312315,3.74027,2673.6,2673.1,4.53026]
[1730310312517,3.74027,2673.6,2673.2,0.67405755]
[1730310312731,3.74013,2673.7,2673.3,3.74067]
[1730310312911,0.1306011,2673.8,2673.3,3.74067]
[1730310313112,3.8706711,2673.8,2673.3,3.74067]
[1730310313358,3.8706711,2673.8,2673.3,7.55607384]
[1730310313509,3.8706711,2673.8,2673.3,7.93153618]
[1730310313712,3.8706711,2673.8,2673.3,4.11606234]
[1730310314515,3.8706711,2673.8,2673.4,3.7405]
[1730310314748,3.8706711,2673.8,2673.3,0.37546234]
[1730310314948,0.1306011,2673.8,2673.3,3.74062]
[1730310315247,0.1306011,2673.8,2673.1,0.7894]
[1730310315248,0.1306011,2673.8,2673.6,3.74024]
[1730310315434,0.1306011,2673.8,2673.6,3.81503648]
[1730310315838,0.1306011,2673.8,2673.5,8.25098]
[1730310316039,0.1306011,2673.8,2673.6,3.74025]
[1730310316212,0.1306011,2673.8,2673.6,3.81504603]
[1730310318117,0.1306011,2673.8,2673.6,3.74025]
[1730310318343,0.1306011,2673.8,2673.6,3.81504596]
[1730310318868,0.1306011,2673.8,2673.7,7.49253]
[1730310319013,0.1306011,2673.8,2673.7,11.5510683]
[1730310319221,0.1306011,2673.8,2673.7,11.47628623]
[1730310319545,0.1306011,2673.8,2673.7,12.02628623]
[1730310319769,3.73824,2675.1,2674.6,0.7524]
[1730310319950,0.457,2675.2,2674.8,3.7385]
[1730310320118,3.73801,2675.3,2674.6,4.49127]
[1730310320326,3.73776,2675.4,2674.6,1.201527]
[1730310320515,3.73776,2675.4,2674.9,3.73839]
[1730310321027,3.7379,2675.3,2674.7,3.81335166]
[1730310321243,0.5876,2675.7,2674.6,1.201527]
[1730310321461,3.60895623,2675.8,2674.6,1.201527]
[1730310321462,0.3453524,2675.6,2675.0,0.7952]
[1730310321758,3.73754,2675.6,2675.1,3.81285324]
[1730310322264,0.5876,2676.0,2675.1,0.07475324]
[1730310322415,3.73712,2675.9,2675.2,3.73793]
[1730310322741,3.73686,2676.1,2675.6,3.73747]
[1730310322949,3.73702,2676.0,2675.6,0.7549]
[1730310323480,3.73686,2676.1,2675.6,0.7549]
[1730310323823,3.73686,2676.1,2675.6,4.49227]
[1730310324177,3.7368,2676.1,2675.6,4.49237]
[1730310324328,0.432419,2676.2,2675.7,3.73726]
[1730310324529,0.1306011,2676.5,2676.0,3.73689]
[1730310324747,0.1306011,2676.5,2675.9,3.73706]
[1730310324962,0.1306011,2676.5,2676.0,3.73684]
[1730310325130,0.1306011,2676.5,2676.1,3.73668]
[1730310325634,3.8668711,2676.5,2675.9,4.33741289]
[1730310325849,0.1306011,2676.5,2676.0,3.7369]
[1730310326036,0.1306011,2676.5,2676.1,3.7367]
[1730310326451,0.1306011,2676.5,2676.2,0.7909]
[1730310326861,3.8668411,2676.5,2676.2,0.7909]
[1730310327559,0.1306011,2676.5,2676.2,0.7909]
[1730310327729,0.1306011,2676.5,2676.3,0.07471818]
[1730310328269,0.1306011,2676.5,2676.2,0.7909]
[1730310328270,3.8668411,2676.5,2676.2,0.7909]
[1730310328456,0.5876,2676.4,2676.0,1.8731]
[1730310328773,3.73666,2676.2,2676.0,1.8731]
[1730310329074,3.73678,2676.1,2676.0,1.8731]
[1730310332185,3.73666,2676.2,2676.0,1.8731]
[1730310332640,4.25353521,2676.5,2676.0,1.8731]
[1730310332844,4.25353521,2676.5,2676.0,5.61001]
[1730310333142,4.25353521,2676.5,2676.0,1.8731]
[1730310333356,3.73638,2676.4,2676.0,1.8731]
[1730310333748,7.98988521,2676.5,2676.0,5.61001]
[1730310334156,4.25353521,2676.5,2676.0,5.61001]
[1730310334355,4.25353521,2676.5,2676.0,1.8731]
[1730310334560,3.73638,2676.4,2676.0,1.8731]
[1730310334776,3.73658,2676.3,2676.0,1.8731]
[1730310334975,3.73678,2676.1,2676.0,1.8731]
[1730310335183,4.32438,2676.1,2676.0,1.8731]
[1730310335386,8.73943823,2676.1,2676.0,1.8731]
[1730310340281,5.130482,2676.1,2676.0,1.8731]
[1730310341146,8.73943823,2676.1,2676.0,1.8731]
[1730310343459,1.24760782,2676.0,2674.9,0.7918]
[1730310343668,7.47632,2675.2,2674.9,0.7918]
[1730310343870,3.73789,2675.3,2674.7,0.7918]
[1730310344081,3.73852,2674.9,2674.7,0.7918]
[1730310344680,3.73827,2675.1,2674.7,0.7918]
[1730310344989,3.73827,2675.1,2674.7,4.53052]
[1730310346182,3.73839,2675.0,2674.7,0.7918]
[1730310346483,4.28870282,2675.0,2674.7,0.7918]
[1730310346844,0.55031282,2675.0,2674.7,0.7918]
[1730310347486,4.28869282,2675.0,2674.7,0.7918]
[1730310347875,0.55031282,2675.0,2674.7,0.7918]
[1730310349061,0.55031282,2675.0,2674.7,4.53051]
[1730310349305,3.73825,2675.1,2674.7,4.53051]
[1730310350230,3.73825,2675.1,2674.7,0.7918]
[1730310350231,3.73838,2675.0,2674.7,0.7918]
[1730310350727,3.73901,2674.5,2674.1,0.759]
[1730310350892,3.73929,2674.3,2674.1,0.759]
[1730310351084,3.73966,2674.1,2673.6,4.49927]
[1730310351427,4.32676,2674.4,2673.6,0.759]
[1730310351579,3.73916,2674.4,2673.6,0.759]
[1730310351779,0.747823,2674.3,2673.6,0.759]
[1730310352035,0.747823,2674.3,2673.7,3.74013]
[1730310352215,3.73944,2674.2,2673.7,7.48018]
[1730310352618,0.747823,2674.3,2673.8,3.73997]
[1730310353129,4.487123,2674.3,2673.8,7.47988]
[1730310353328,0.747823,2674.3,2673.9,3.73985]
[1730310354184,4.487143,2674.3,2673.8,3.73991]
[1730310354386,4.487143,2674.3,2673.8,7.47978]
[1730310354607,4.487143,2674.3,2673.8,3.73987]
[1730310355217,0.747823,2674.3,2673.9,3.73983]
[1730310355530,0.747823,2674.3,2673.8,3.73987]
[1730310355707,3.73947,2674.2,2673.8,3.73987]
[1730310356042,3.73983,2674.0,2673.6,0.759]
[1730310356323,3.73983,2674.0,2673.6,4.49926]
[1730310356629,3.73956,2674.2,2673.6,4.49926]
[1730310356856,0.73485162,2674.1,2673.6,4.49917]
[1730310357359,4.47444162,2674.1,2673.7,3.74013]
[1730310357552,3.73959,2674.1,2673.7,3.74013]
[1730310357937,3.73925,2674.4,2673.8,0.07479633]
[1730310358231,7.47853,2674.4,2673.9,3.73976]
[1730310358432,0.373925,2674.3,2673.9,3.73976]
[1730310358744,4.113225,2674.3,2673.9,3.73976]
[1730310358952,0.373925,2674.3,2673.9,3.73976]
[1730310360038,4.113225,2674.3,2673.7,3.73999]
[1730310360220,0.4113155,2674.2,2673.8,3.73987]
[1730310360421,0.4113155,2674.2,2673.8,3.73991]
[1730310360629,4.1507855,2674.2,2673.8,3.73991]
[1730310360852,0.4113155,2674.2,2673.8,7.47982]
[1730310361384,4.1507555,2674.2,2673.8,3.73991]
[1730310361853,0.4113155,2674.2,2673.8,7.47982]
[1730310363442,3.73912,2674.5,2673.9,3.73978]
[1730310363641,3.73888,2674.6,2674.1,3.73951]
[1730310363834,3.73888,2674.6,2674.2,3.73942]
[1730310364031,3.73881,2674.7,2674.2,3.73942]
[1730310364259,0.38809901,2674.6,2674.2,3.73942]
[1730310364484,7.64752623,2674.9,2674.3,3.73929]
[1730310364485,0.3,2674.9,2674.3,3.73929]
[1730310364777,4.03846,2674.9,2674.5,3.7389]
[1730310364971,3.73866,2674.8,2674.3,3.7392]
[1730310365268,3.73861,2674.8,2674.4,3.73914]
[1730310365859,3.73943,2674.2,2673.9,0.8049]
[1730310366169,3.73908,2674.5,2674.0,3.73971]
[1730310366352,3.73936,2674.3,2673.9,0.8049]
[1730310366877,3.73902,2674.5,2674.0,3.73963]
[1730310367045,4.84771362,2674.5,2674.0,3.73963]
[1730310367739,4.84771362,2674.5,2673.9,4.54464]
[1730310367941,3.73928,2674.4,2673.9,4.54464]
[1730310368250,4.84771362,2674.5,2674.0,3.8144659]
[1730310368578,4.84771362,2674.5,2674.0,3.81446591]
[1730310368775,0.84566699,2674.4,2674.0,3.81446591]
[1730310368975,0.84566699,2674.4,2674.1,3.73955]
[1730310369783,0.84566699,2674.4,2674.0,3.81449591]
[1730310370579,0.84566699,2674.4,2674.0,3.73971]
[1730310370783,3.73884,2674.7,2674.2,3.73938]
[1730310371141,7.47769,2674.7,2674.2,3.73938]
[1730310371477,3.73884,2674.7,2674.2,3.73938]
[1730310371662,3.73901,2674.5,2674.1,3.73947]
[1730310372621,3.73921,2674.4,2673.9,4.54473]
[1730310372777,3.73921,2674.4,2673.9,8.3593471]
[1730310372980,3.73921,2674.4,2673.9,8.28451]
[1730310373278,4.84792762,2674.4,2673.9,4.54468]
[1730310373814,4.84792762,2674.4,2673.9,4.61946711]
[1730310374881,4.84792762,2674.4,2673.9,8.35924711]
[1730310375076,4.84792762,2674.4,2673.9,8.28446]
[1730310375281,4.84792762,2674.4,2674.0,0.3738]
[1730310375482,3.73903,2674.5,2674.0,4.11345]
[1730310375715,4.93618462,2674.7,2674.2,3.73934]
[1730310375886,0.3,2674.9,2674.5,3.73891]
[1730310376416,0.3,2674.9,2674.6,3.73886]
[1730310378285,4.87494,2674.9,2674.4,3.73915]
[1730310378600,4.74537623,2674.9,2674.3,0.8296]
[1730310378800,3.73879,2674.7,2674.3,0.8296]
[1730310380192,8.48384623,2674.9,2674.4,3.73913]
[1730310380518,8.48384623,2674.9,2674.3,8.308]
[1730310380519,3.73866,2674.8,2674.3,8.308]
[1730310381021,8.48388623,2674.9,2674.4,3.73901]
[1730310381791,3.73865,2674.8,2674.4,3.73901]
[1730310384232,0.56787322,2674.8,2674.4,7.47808]
[1730310384622,4.30649322,2674.8,2674.4,3.73901]
[1730310385719,0.56787322,2674.8,2674.4,3.73901]
[1730310386240,0.56787322,2674.8,2674.4,7.47807]
[1730310386811,0.56787322,2674.8,2674.5,3.73898]
[1730310388005,4.30653322,2674.8,2674.3,4.56886]
[1730310388248,4.30653322,2674.8,2674.4,3.73911]
[1730310389236,0.3,2674.9,2674.5,3.73893]
[1730310389613,0.3,2674.9,2674.4,3.73911]
[1730310389815,4.03854,2674.9,2674.4,7.47819]
[1730310390009,1.077693,2674.9,2673.9,0.3738]
[1730310390321,3.73942,2674.3,2673.8,4.49847]
[1730310390525,0.5876,2674.4,2673.9,3.81456058]
[1730310390730,4.32683,2674.4,2673.9,3.73977]
[1730310390939,5.12039462,2674.4,2673.9,3.73977]
[1730310391751,3.73933,2674.3,2673.9,3.73977]
[1730310393342,3.73903,2674.5,2674.0,0.07478975]
[1730310393651,1.16745562,2674.5,2674.1,3.73956]
[1730310393848,3.73897,2674.6,2674.1,7.47912]
[1730310394254,0.34709975,2674.5,2674.1,7.47912]
[1730310394449,3.73897,2674.6,2674.1,3.73956]
[1730310394759,0.34710724,2674.5,2674.1,3.73956]
[1730310395069,3.73903,2674.5,2674.1,3.73956]
[1730310395418,0.5876,2674.8,2674.1,3.73956]
[1730310395749,3.73904,2674.5,2674.1,3.73956]
[1730310396157,0.44965562,2674.7,2673.8,3.7585]
[1730310396364,3.7393,2674.3,2673.9,3.73985]
[1730310396922,3.73901,2674.5,2673.9,3.73985]
[1730310397123,3.73901,2674.5,2673.9,3.73975]
[1730310397124,3.73917,2674.4,2673.9,3.73975]
[1730310397333,7.4781,2674.5,2674.0,3.73965]
[1730310397534,3.73924,2674.4,2673.9,3.73975]
[1730310398057,3.73924,2674.4,2673.9,7.47951]
[1730310398276,3.73901,2674.5,2673.9,3.73975]
[1730310398465,3.73929,2674.3,2673.9,3.73975]
[1730310398955,3.73929,2674.3,2673.9,7.47952]
[1730310399160,3.73929,2674.3,2673.9,3.73975]
[1730310400050,3.73963,2674.1,2673.8,3.7585]
[1730310400240,4.546302,2674.1,2673.8,3.7585]
[1730310400751,3.7398,2674.0,2673.6,3.3738]
[1730310400954,3.7398,2674.0,2673.6,4.1774]
[1730310401352,4.546302,2674.1,2673.7,3.74012]
[1730310401752,4.546302,2674.1,2673.7,3.8149134]
[1730310401976,3.73963,2674.1,2673.7,3.8149134]
[1730310402776,3.73963,2674.1,2673.7,3.8148634]
[1730310402941,3.73963,2674.1,2673.7,7.5549334]
[1730310403473,3.73916,2674.4,2674.0,3.73971]
[1730310403680,4.98461784,2674.4,2674.0,3.73971]
[1730310404571,3.73916,2674.4,2674.0,3.73971]
[1730310406171,3.73916,2674.4,2673.9,4.57045]
[1730310406491,3.73931,2674.3,2673.9,4.645237]
[1730310406655,3.73916,2674.4,2674.0,3.73971]
[1730310409995,7.47841,2674.4,2674.0,3.73971]
[1730310410203,3.73916,2674.4,2674.0,3.73971]
[1730310411191,3.73931,2674.3,2673.9,4.64520723]
[1730310411363,3.73931,2674.3,2673.9,8.38497723]
[1730310411665,3.73931,2674.3,2673.9,8.31019]
[1730310412059,4.486983,2674.4,2673.9,8.31019]
[1730310412255,4.486983,2674.4,2673.9,8.31015]
[1730310412467,4.486983,2674.4,2673.9,4.57037]
[1730310412672,0.747813,2674.4,2674.0,3.73957]
[1730310412883,3.73902,2674.5,2674.0,7.47914]
[1730310414269,3.73902,2674.5,2674.0,3.73957]
[1730310414597,3.73902,2674.5,2674.0,7.47917]
[1730310414813,3.73902,2674.5,2674.1,3.73952]
[1730310415102,3.73915,2674.4,2674.0,3.73957]
[1730310415479,3.73916,2674.4,2673.9,0.8306]
[1730310415684,3.73916,2674.4,2673.9,4.57043]
[1730310415685,3.73933,2674.3,2673.9,4.57043]
[1730310416996,4.19824826,2674.4,2674.0,3.73966]
[1730310417203,3.73918,2674.4,2674.0,3.73966]
[1730310418102,3.73932,2674.3,2673.9,4.57044]
[1730310420201,3.73995,2673.9,2673.6,3.7979]
[1730310420397,3.73967,2674.1,2673.6,3.7979]
[1730310420600,0.5876,2674.2,2673.6,7.53811]
[1730310420777,3.73965,2674.1,2673.6,7.53811]
[1730310421110,0.5876,2674.2,2673.6,3.7979]
[1730310421304,3.73879,2674.7,2674.3,0.8018]
[1730310421606,4.08570286,2674.6,2674.3,0.8018]
[1730310421803,0.462631,2674.7,2674.3,0.8018]
[1730310422014,4.32631,2674.8,2674.4,3.73913]
[1730310422015,3.73871,2674.8,2674.4,3.73913]
[1730310422172,3.73866,2674.8,2674.3,3.73929]
[1730310422372,0.3,2674.9,2674.3,3.73929]
[1730310422688,4.08543123,2674.8,2674.3,3.73929]
[1730310422873,3.7386,2674.8,2674.3,3.73921]
[1730310423202,3.7386,2674.8,2674.3,7.47841]
[1730310423413,3.7386,2674.8,2674.3,3.7392]
[1730310423882,0.777703,2674.8,2674.2,3.73943]
[1730310424213,3.73894,2674.6,2674.2,3.73943]
[1730310424510,0.5876,2674.6,2674.1,0.8018]
[1730310424710,3.73952,2674.2,2673.7,4.50449]
[1730310426715,3.73952,2674.2,2673.8,3.73999]
[1730310427404,3.73957,2674.1,2673.7,0.7644]
[1730310428114,3.73957,2674.1,2673.7,4.50452]
[1730310428522,3.73945,2674.2,2673.7,4.50452]
[1730310428732,3.73945,2674.2,2673.8,3.73997]
[1730310428927,0.7171922,2674.2,2673.7,4.50452]
[1730310429228,3.73958,2674.1,2673.7,4.50452]
[1730310432723,7.47928,2674.1,2673.7,0.7644]
[1730310433128,3.73958,2674.1,2673.7,0.7644]
[1730310433337,0.806657,2674.1,2673.5,3.0]
[1730310433629,3.73994,2673.9,2673.5,3.0]
[1730310433834,4.5685707,2673.9,2673.5,3.0]
[1730310434417,4.5685707,2673.9,2673.4,6.74042]
[1730310434728,3.74021,2673.7,2673.2,1.1623]
[1730310435025,3.74061,2673.4,2673.0,0.7903]
[1730310435233,3.74097,2673.2,2673.0,0.7903]
[1730310435431,3.74106,2673.1,2672.8,1.1423]
[1730310435616,5.076263,2673.4,2672.8,1.1423]
[1730310435825,0.34747201,2673.3,2673.0,3.74103]
[1730310436028,3.74048,2673.5,2673.0,3.74103]
[1730310436596,3.74016,2673.7,2673.2,3.74076]
[1730310436957,0.5876,2674.4,2673.8,0.7504]
[1730310437101,3.73884,2674.7,2674.3,3.73927]
[1730310437434,3.73869,2674.8,2674.3,3.73927]
[1730310437638,3.73869,2674.8,2674.4,0.7504]
[1730310437854,4.03854,2674.9,2674.4,4.48944]
[1730310438141,3.73865,2674.8,2674.4,0.7504]
[1730310438500,0.3,2674.9,2674.7,3.73867]
[1730310438917,0.3,2674.9,2674.8,3.73859]
[1730310440028,0.3,2674.9,2674.7,3.73867]
[1730310440229,4.03854,2674.9,2674.4,4.48948]
[1730310440433,4.03854,2674.9,2674.5,3.0]
[1730310441200,3.73883,2674.7,2674.1,0.7901]
[1730310441437,3.73883,2674.7,2674.3,3.0]
[1730310442009,3.7386,2674.8,2674.3,6.73926]
[1730310442836,0.3,2674.9,2674.5,3.73894]
[1730310443264,0.3,2674.9,2674.7,3.73864]
[1730310443448,0.3,2674.9,2674.8,3.73859]
[1730310447261,0.3,2674.9,2674.7,3.73864]
[1730310447564,0.3,2674.9,2674.8,3.73859]
[1730310449774,0.3,2674.9,2674.7,4.190754]
[1730310449938,0.3,2674.9,2674.6,0.7825]
[1730310450264,0.3,2674.9,2674.6,4.52135]
[1730310451276,0.3,2674.9,2674.6,0.7825]
[1730310451653,0.3,2674.9,2674.7,3.73872]
[1730310452459,0.3,2674.9,2674.7,3.73865]
[1730310452763,0.3,2674.9,2674.8,3.73859]
[1730310454449,0.3,2674.9,2674.6,4.97343]
[1730310455242,0.3,2674.9,2674.7,3.73872]
[1730310455475,0.3,2674.9,2674.7,4.34072989]
[1730310455866,0.3,2674.9,2674.7,0.60200989]
[1730310456190,0.3,2674.9,2674.7,4.34063989]
[1730310456482,0.3,2674.9,2674.8,3.81335553]
[1730310457051,0.3,2674.9,2674.8,3.73859]
[1730310457284,0.3,2674.9,2674.8,3.81334952]
[1730310458582,0.3,2674.9,2674.8,11.21260575]
[1730310458810,0.3,2674.9,2674.8,11.13784623]
[1730310459095,0.3,2674.9,2674.8,11.68784623]
[1730310459256,4.32446,2676.1,2675.6,3.73736]
[1730310460276,4.32446,2676.1,2675.7,3.73731]
[1730310460478,4.32446,2676.1,2675.6,3.73736]
[1730310460781,3.73716,2675.9,2675.4,3.73772]
[1730310460973,3.73692,2676.0,2675.4,3.73772]
[1730310461297,3.73721,2675.8,2675.4,3.73772]
[1730310461590,3.73692,2676.0,2675.4,3.73772]
[1730310461755,3.73708,2675.9,2675.4,7.4754]
[1730310462870,3.73708,2675.9,2675.5,3.73759]
[1730310463074,3.73692,2676.0,2675.4,3.73771]
[1730310463274,3.73712,2675.9,2675.4,3.73771]
[1730310464557,3.73729,2675.8,2675.3,7.47559]
[1730310464762,3.73692,2676.0,2675.4,3.73762]
[1730310465087,3.73692,2676.0,2675.6,3.73747]
[1730310465409,4.3244,2676.1,2675.6,3.73747]